[Event "Titled Tuesday Blitz May 17 Late 2022"]
[White "Dubov, Daniil"]
[Black "Babazada, Khazar"]
[WhiteFideId "24126055"]
[BlackFideId "13413554"]
[WhiteElo "2791"]
[BlackElo "2406"]
[Result "1-0"]
[Round "04"]
[TimeControl "180+1"]
[Date "2022.05.17"]
[WhiteClock "0:01:11"]
[BlackClock "0:00:01"]

1. d4 {[%clk 0:03:00]}  g6 {[%clk 0:03:00]} 2. Nf3 {[%clk 0:03:01]}  Bg7 {[%clk 0:03:00]} 3. e4 {[%clk 0:03:01]}  d6 {[%clk 0:03:01]} 4. Nc3 {[%clk 0:03:02]}  a6 {[%clk 0:03:01]} 5. Bc4 {[%clk 0:02:58]}  b5 {[%clk 0:03:00]} 6. Bb3 {[%clk 0:02:59]}  e6 {[%clk 0:03:00]} 7. O-O {[%clk 0:02:58]}  Ne7 {[%clk 0:02:58]} 8. Re1 {[%clk 0:02:57]}  O-O {[%clk 0:02:59]} 9. Ne2 {[%clk 0:02:57]}  Bb7 {[%clk 0:02:56]} 10. Ng3 {[%clk 0:02:57]}  c5 {[%clk 0:02:54]} 11. c3 {[%clk 0:02:57]}  cxd4 {[%clk 0:02:50]} 12. cxd4 {[%clk 0:02:56]}  Nbc6 {[%clk 0:02:51]} 13. h4 {[%clk 0:02:53]}  h5 {[%clk 0:02:09]} 14. Bg5 {[%clk 0:02:48]}  Qd7 {[%clk 0:01:56]} 15. Qd2 {[%clk 0:02:44]}  f6 {[%clk 0:01:32]} 16. Bh6 {[%clk 0:02:32]}  Kh7 {[%clk 0:01:32]} 17. Bxg7 {[%clk 0:02:32]}  Kxg7 {[%clk 0:01:33]} 18. d5 {[%clk 0:02:32]}  exd5 {[%clk 0:01:14]} 19. exd5 {[%clk 0:02:33]}  Ne5 {[%clk 0:01:14]} 20. Nd4 {[%clk 0:02:33]}  Nxd5 {[%clk 0:00:52]} 21. Bxd5 {[%clk 0:02:34]}  Bxd5 {[%clk 0:00:53]} 22. Ndf5+ {[%clk 0:02:34]}  gxf5 {[%clk 0:00:54]} 23. Nxh5+ {[%clk 0:02:34]}  Kh7 {[%clk 0:00:50]} 24. Qxd5 {[%clk 0:02:33]}  Rae8 {[%clk 0:00:49]} 25. Rad1 {[%clk 0:02:30]}  Kh6 {[%clk 0:00:36]} 26. Ng3 {[%clk 0:02:23]}  f4 {[%clk 0:00:33]} 27. Qd2 {[%clk 0:02:23]}  Qg4 {[%clk 0:00:30]} 28. Re4 {[%clk 0:02:02]}  Ng6 {[%clk 0:00:28]} 29. Rde1 {[%clk 0:01:55]}  Rxe4 {[%clk 0:00:26]} 30. Rxe4 {[%clk 0:01:56]}  Kg7 {[%clk 0:00:08]} 31. h5 {[%clk 0:01:51]}  f5 {[%clk 0:00:03]} 32. Rd4 {[%clk 0:01:50]}  Ne5 {[%clk 0:00:01]} 33. Rxf4 {[%clk 0:01:49]}  Qg5 {[%clk 0:00:01]} 34. Qd4 {[%clk 0:01:33]}  Rc8 {[%clk 0:00:01]} 35. Nxf5+ {[%clk 0:01:32]}  Kh7 {[%clk 0:00:02]} 36. Ne3 {[%clk 0:01:26]}  Rc1+ {[%clk 0:00:02]} 37. Kh2 {[%clk 0:01:26]}  Kg8 {[%clk 0:00:01]} 38. Qd5+ {[%clk 0:01:20]}  Kh8 {[%clk 0:00:01]} 39. Rf8+ {[%clk 0:01:11]}  Kh7 {[%clk 0:00:01]} 40. Qe4+ {[%clk 0:01:11]} 1-0


[Site "https://www.chess.com"]

[Event "Titled Tuesday Blitz May 17 Late 2022"]
[White "Ekdyshman, Mikhail"]
[Black "Paravyan, David"]
[WhiteFideId "4149416"]
[BlackFideId "4194985"]
[WhiteElo "2146"]
[BlackElo "2569"]
[Result "0-1"]
[Round "04"]
[TimeControl "180+1"]
[Date "2022.05.17"]
[WhiteClock "0:00:10"]
[BlackClock "0:00:15"]

1. c4 {[%clk 0:02:59]}  Nf6 {[%clk 0:02:51]} 2. Nc3 {[%clk 0:02:59]}  d5 {[%clk 0:02:52]} 3. cxd5 {[%clk 0:02:59]}  Nxd5 {[%clk 0:02:52]} 4. Nf3 {[%clk 0:03:00]}  g6 {[%clk 0:02:52]} 5. b3 {[%clk 0:03:00]}  Nxc3 {[%clk 0:02:51]} 6. dxc3 {[%clk 0:03:01]}  Qxd1+ {[%clk 0:02:51]} 7. Kxd1 {[%clk 0:03:01]}  Bg7 {[%clk 0:02:52]} 8. Bb2 {[%clk 0:03:02]}  Nc6 {[%clk 0:02:51]} 9. e4 {[%clk 0:03:01]}  Bg4 {[%clk 0:02:38]} 10. Kc2 {[%clk 0:03:01]}  O-O-O {[%clk 0:02:38]} 11. Be2 {[%clk 0:03:00]}  f5 {[%clk 0:02:32]} 12. h3 {[%clk 0:02:57]}  Bxf3 {[%clk 0:02:32]} 13. Bxf3 {[%clk 0:02:57]}  Ne5 {[%clk 0:02:33]} 14. Be2 {[%clk 0:02:28]}  fxe4 {[%clk 0:02:27]} 15. Rad1 {[%clk 0:02:26]}  Rxd1 {[%clk 0:02:22]} 16. Rxd1 {[%clk 0:02:26]}  Rf8 {[%clk 0:02:22]} 17. Rf1 {[%clk 0:02:26]}  Kd7 {[%clk 0:02:04]} 18. c4 {[%clk 0:02:26]}  Ke6 {[%clk 0:01:56]} 19. Bd4 {[%clk 0:02:12]}  Bf6 {[%clk 0:01:55]} 20. Be3 {[%clk 0:02:08]}  Rd8 {[%clk 0:01:51]} 21. Rd1 {[%clk 0:02:07]}  Rd6 {[%clk 0:01:45]} 22. a4 {[%clk 0:01:54]}  a5 {[%clk 0:01:39]} 23. Bc5 {[%clk 0:01:48]}  Rxd1 {[%clk 0:01:23]} 24. Kxd1 {[%clk 0:01:46]}  h5 {[%clk 0:01:20]} 25. Kd2 {[%clk 0:01:39]}  b6 {[%clk 0:01:11]} 26. Be3 {[%clk 0:01:38]}  Nc6 {[%clk 0:01:06]} 27. Bd1 {[%clk 0:01:32]}  Bd4 {[%clk 0:01:03]} 28. Bc2 {[%clk 0:01:19]}  Ke5 {[%clk 0:00:55]} 29. Bd1 {[%clk 0:01:05]}  Bxe3+ {[%clk 0:00:32]} 30. fxe3 {[%clk 0:01:05]}  Nb4 {[%clk 0:00:30]} 31. Be2 {[%clk 0:01:02]}  Na6 {[%clk 0:00:28]} 32. Bd1 {[%clk 0:00:59]}  Nc5 {[%clk 0:00:28]} 33. Bc2 {[%clk 0:00:59]}  Kf5 {[%clk 0:00:28]} 34. Ke2 {[%clk 0:00:58]}  Kg5 {[%clk 0:00:27]} 35. Kf2 {[%clk 0:00:53]}  Kh4 {[%clk 0:00:11]} 36. Bd1 {[%clk 0:00:33]}  Nd3+ {[%clk 0:00:11]} 37. Kf1 {[%clk 0:00:27]}  Kg3 {[%clk 0:00:11]} 38. Be2 {[%clk 0:00:24]}  Nc5 {[%clk 0:00:11]} 39. Bd1 {[%clk 0:00:24]}  e5 {[%clk 0:00:09]} 40. Bc2 {[%clk 0:00:24]}  g5 {[%clk 0:00:09]} 41. Bd1 {[%clk 0:00:24]}  g4 {[%clk 0:00:09]} 42. hxg4 {[%clk 0:00:24]}  hxg4 {[%clk 0:00:10]} 43. Bc2 {[%clk 0:00:24]}  Kh2 {[%clk 0:00:09]} 44. Bd1 {[%clk 0:00:22]}  g3 {[%clk 0:00:10]} 45. Bc2 {[%clk 0:00:22]}  Nd3 {[%clk 0:00:10]} 46. Bb1 {[%clk 0:00:22]}  Nf2 {[%clk 0:00:09]} 47. Bc2 {[%clk 0:00:20]}  Ng4 {[%clk 0:00:09]} 48. Bxe4 {[%clk 0:00:19]}  Nxe3+ {[%clk 0:00:09]} 49. Ke2 {[%clk 0:00:18]}  Nxg2 {[%clk 0:00:10]} 50. Kf3 {[%clk 0:00:10]}  Nf4 {[%clk 0:00:10]} 51. Kg4 {[%clk 0:00:10]}  g2 {[%clk 0:00:11]} 52. Bxg2 {[%clk 0:00:10]}  Kxg2 {[%clk 0:00:12]} 53. Kf5 {[%clk 0:00:10]}  Ng6 {[%clk 0:00:12]} 54. Ke4 {[%clk 0:00:05]}  c5 {[%clk 0:00:11]} 55. Kd5 {[%clk 0:00:04]}  Kf3 {[%clk 0:00:12]} 56. Kc6 {[%clk 0:00:05]}  e4 {[%clk 0:00:12]} 57. Kxb6 {[%clk 0:00:06]}  e3 {[%clk 0:00:13]} 58. Kxa5 {[%clk 0:00:07]}  e2 {[%clk 0:00:14]} 59. Kb6 {[%clk 0:00:08]}  e1=Q {[%clk 0:00:15]} 60. a5 {[%clk 0:00:08]}  Qb4+ {[%clk 0:00:15]} 61. Ka6 {[%clk 0:00:09]}  Ne7 {[%clk 0:00:15]} 62. Ka7 {[%clk 0:00:09]}  Ke4 {[%clk 0:00:14]} 63. a6 {[%clk 0:00:09]}  Nc6+ {[%clk 0:00:14]} 64. Ka8 {[%clk 0:00:10]}  Qb8# {[%clk 0:00:15]} 0-1


[Site "https://www.chess.com"]

[Event "Titled Tuesday Blitz May 17 Late 2022"]
[White "Halkias, Stelios"]
[Black "Demchenko, Anton"]
[WhiteFideId "4201809"]
[BlackFideId "4160258"]
[WhiteElo "2453"]
[BlackElo "2539"]
[Result "0-1"]
[Round "04"]
[TimeControl "180+1"]
[Date "2022.05.17"]
[WhiteClock "0:00:13"]
[BlackClock "0:00:24"]

1. Nf3 {[%clk 0:03:00]}  Nf6 {[%clk 0:02:58]} 2. d4 {[%clk 0:03:00]}  g6 {[%clk 0:02:58]} 3. g3 {[%clk 0:03:00]}  Bg7 {[%clk 0:02:58]} 4. Bg2 {[%clk 0:03:01]}  O-O {[%clk 0:02:59]} 5. O-O {[%clk 0:03:02]}  d6 {[%clk 0:03:00]} 6. Re1 {[%clk 0:03:02]}  Nc6 {[%clk 0:02:48]} 7. d5 {[%clk 0:02:57]}  Nb4 {[%clk 0:02:48]} 8. e4 {[%clk 0:02:57]}  e5 {[%clk 0:02:49]} 9. c4 {[%clk 0:02:42]}  a5 {[%clk 0:02:48]} 10. Nc3 {[%clk 0:02:42]}  Na6 {[%clk 0:02:45]} 11. b3 {[%clk 0:02:40]}  Bg4 {[%clk 0:02:30]} 12. h3 {[%clk 0:02:37]}  Bxf3 {[%clk 0:02:30]} 13. Bxf3 {[%clk 0:02:37]}  Nd7 {[%clk 0:02:31]} 14. Bd2 {[%clk 0:02:30]}  f5 {[%clk 0:02:31]} 15. Kg2 {[%clk 0:02:24]}  Ndc5 {[%clk 0:02:23]} 16. a3 {[%clk 0:02:15]}  Qf6 {[%clk 0:02:17]} 17. Rb1 {[%clk 0:02:05]}  fxe4 {[%clk 0:02:12]} 18. Rxe4 {[%clk 0:01:29]}  Qf7 {[%clk 0:01:52]} 19. b4 {[%clk 0:01:26]}  axb4 {[%clk 0:01:51]} 20. axb4 {[%clk 0:01:26]}  Nd7 {[%clk 0:01:11]} 21. Qe2 {[%clk 0:01:23]}  Nf6 {[%clk 0:01:10]} 22. Bg4 {[%clk 0:01:23]}  Kh8 {[%clk 0:00:56]} 23. Be6 {[%clk 0:01:21]}  Qe8 {[%clk 0:00:54]} 24. Rh4 {[%clk 0:01:19]}  c5 {[%clk 0:00:51]} 25. Nb5 {[%clk 0:01:12]}  Qe7 {[%clk 0:00:50]} 26. bxc5 {[%clk 0:01:01]}  Nxc5 {[%clk 0:00:50]} 27. Bb4 {[%clk 0:00:55]}  b6 {[%clk 0:00:48]} 28. Qc2 {[%clk 0:00:39]}  e4 {[%clk 0:00:44]} 29. Nd4 {[%clk 0:00:35]}  Nh5 {[%clk 0:00:39]} 30. Rxh5 {[%clk 0:00:27]}  Bxd4 {[%clk 0:00:36]} 31. Bc3 {[%clk 0:00:27]}  Qg7 {[%clk 0:00:33]} 32. Bxd4 {[%clk 0:00:20]}  Qxd4 {[%clk 0:00:34]} 33. Rh4 {[%clk 0:00:21]}  Nd3 {[%clk 0:00:32]} 34. Rf1 {[%clk 0:00:21]}  Rxf2+ {[%clk 0:00:30]} 35. Rxf2 {[%clk 0:00:15]}  Ne1+ {[%clk 0:00:30]} 36. Kh1 {[%clk 0:00:14]}  Nxc2 {[%clk 0:00:31]} 37. Rf7 {[%clk 0:00:14]}  h5 {[%clk 0:00:25]} 38. Rhf4 {[%clk 0:00:13]}  Ra1+ {[%clk 0:00:24]} 0-1


[Site "https://www.chess.com"]

[Event "Titled Tuesday Blitz May 17 Late 2022"]
[White "Holt, Conrad"]
[Black "Sadhwani, Raunak"]
[WhiteFideId "2034387"]
[BlackFideId "35093487"]
[WhiteElo "2586"]
[BlackElo "2616"]
[Result "1/2-1/2"]
[Round "04"]
[TimeControl "180+1"]
[Date "2022.05.17"]
[WhiteClock "0:00:12"]
[BlackClock "0:00:07"]

1. d4 {[%clk 0:03:00]}  g6 {[%clk 0:02:59]} 2. c4 {[%clk 0:03:01]}  Bg7 {[%clk 0:02:59]} 3. Nf3 {[%clk 0:03:01]}  d6 {[%clk 0:02:59]} 4. e4 {[%clk 0:03:01]}  Nf6 {[%clk 0:02:59]} 5. Nc3 {[%clk 0:03:01]}  O-O {[%clk 0:03:00]} 6. h3 {[%clk 0:03:00]}  e5 {[%clk 0:03:00]} 7. dxe5 {[%clk 0:03:00]}  dxe5 {[%clk 0:03:00]} 8. Qxd8 {[%clk 0:03:01]}  Rxd8 {[%clk 0:03:01]} 9. Bg5 {[%clk 0:03:02]}  Re8 {[%clk 0:02:56]} 10. Nd5 {[%clk 0:03:02]}  Nxd5 {[%clk 0:02:50]} 11. cxd5 {[%clk 0:03:03]}  c6 {[%clk 0:02:50]} 12. Bc4 {[%clk 0:03:03]}  cxd5 {[%clk 0:02:50]} 13. Bxd5 {[%clk 0:03:03]}  Nd7 {[%clk 0:02:50]} 14. Nd2 {[%clk 0:03:03]}  Nc5 {[%clk 0:02:50]} 15. Nc4 {[%clk 0:03:03]}  Be6 {[%clk 0:02:48]} 16. Nd6 {[%clk 0:03:02]}  Reb8 {[%clk 0:02:38]} 17. O-O-O {[%clk 0:03:01]}  Bxd5 {[%clk 0:02:14]} 18. Rxd5 {[%clk 0:03:00]}  Ne6 {[%clk 0:02:14]} 19. Be3 {[%clk 0:02:56]}  b6 {[%clk 0:02:10]} 20. Kb1 {[%clk 0:02:50]}  Rd8 {[%clk 0:02:04]} 21. Rhd1 {[%clk 0:02:41]}  Nc7 {[%clk 0:01:30]} 22. R5d3 {[%clk 0:02:34]}  Kf8 {[%clk 0:01:22]} 23. Nxf7 {[%clk 0:02:29]}  Rxd3 {[%clk 0:01:20]} 24. Rxd3 {[%clk 0:02:27]}  Ne6 {[%clk 0:01:19]} 25. Ng5 {[%clk 0:02:18]}  Nxg5 {[%clk 0:01:17]} 26. Bxg5 {[%clk 0:02:18]}  Ke8 {[%clk 0:01:18]} 27. Rd6 {[%clk 0:02:13]}  Rc8 {[%clk 0:01:11]} 28. f3 {[%clk 0:02:10]}  Rc7 {[%clk 0:01:11]} 29. Rd8+ {[%clk 0:02:09]}  Kf7 {[%clk 0:01:12]} 30. Bd2 {[%clk 0:01:54]}  Bf6 {[%clk 0:01:11]} 31. Rd5 {[%clk 0:01:54]}  Ke6 {[%clk 0:01:10]} 32. Bc3 {[%clk 0:01:52]}  g5 {[%clk 0:01:01]} 33. Kc2 {[%clk 0:01:50]}  h5 {[%clk 0:01:02]} 34. g4 {[%clk 0:01:41]}  hxg4 {[%clk 0:00:55]} 35. hxg4 {[%clk 0:01:40]}  Rh7 {[%clk 0:00:55]} 36. Kb3 {[%clk 0:01:40]}  Rc7 {[%clk 0:00:44]} 37. a4 {[%clk 0:01:38]}  Bg7 {[%clk 0:00:43]} 38. a5 {[%clk 0:01:36]}  Rf7 {[%clk 0:00:29]} 39. axb6 {[%clk 0:01:31]}  axb6 {[%clk 0:00:30]} 40. Rd3 {[%clk 0:01:29]}  Bf8 {[%clk 0:00:27]} 41. Kc4 {[%clk 0:01:27]}  Bc5 {[%clk 0:00:25]} 42. Bd2 {[%clk 0:01:25]}  Bd4 {[%clk 0:00:23]} 43. b3 {[%clk 0:01:08]}  Kd6 {[%clk 0:00:14]} 44. Kb5 {[%clk 0:01:07]}  Rc7 {[%clk 0:00:14]} 45. Bxg5 {[%clk 0:01:00]}  Rc5+ {[%clk 0:00:14]} 46. Kb4 {[%clk 0:01:00]}  Kc6 {[%clk 0:00:11]} 47. Bd2 {[%clk 0:00:54]}  Rc2 {[%clk 0:00:10]} 48. Ka3 {[%clk 0:00:40]}  Bb2+ {[%clk 0:00:08]} 49. Ka2 {[%clk 0:00:29]}  Bc1+ {[%clk 0:00:07]} 50. Kb1 {[%clk 0:00:29]}  Rxd2 {[%clk 0:00:08]} 51. Rc3+ {[%clk 0:00:29]}  Kb5 {[%clk 0:00:09]} 52. Kxc1 {[%clk 0:00:29]}  Rf2 {[%clk 0:00:09]} 53. Rc2 {[%clk 0:00:17]}  Rxf3 {[%clk 0:00:09]} 54. Rg2 {[%clk 0:00:17]}  Rxb3 {[%clk 0:00:03]} 55. g5 {[%clk 0:00:18]}  Rc3+ {[%clk 0:00:03]} 56. Kd2 {[%clk 0:00:16]}  Rc7 {[%clk 0:00:04]} 57. Ke3 {[%clk 0:00:14]}  Rg7 {[%clk 0:00:02]} 58. Kf3 {[%clk 0:00:13]}  Rf7+ {[%clk 0:00:02]} 59. Kg4 {[%clk 0:00:13]}  Kc4 {[%clk 0:00:02]} 60. g6 {[%clk 0:00:13]}  Rf8 {[%clk 0:00:02]} 61. g7 {[%clk 0:00:13]}  Rg8 {[%clk 0:00:03]} 62. Kf5 {[%clk 0:00:13]}  Kd4 {[%clk 0:00:03]} 63. Rg1 {[%clk 0:00:12]}  b5 {[%clk 0:00:04]} 64. Rd1+ {[%clk 0:00:13]}  Ke3 {[%clk 0:00:04]} 65. Re1+ {[%clk 0:00:13]}  Kd4 {[%clk 0:00:04]} 66. Rd1+ {[%clk 0:00:13]}  Ke3 {[%clk 0:00:05]} 67. Kf6 {[%clk 0:00:11]}  Kxe4 {[%clk 0:00:04]} 68. Kf7 {[%clk 0:00:10]}  Rxg7+ {[%clk 0:00:04]} 69. Kxg7 {[%clk 0:00:10]}  Kf3 {[%clk 0:00:04]} 70. Kf6 {[%clk 0:00:10]}  e4 {[%clk 0:00:05]} 71. Ke5 {[%clk 0:00:11]}  e3 {[%clk 0:00:06]} 72. Kd4 {[%clk 0:00:11]}  e2 {[%clk 0:00:06]} 73. Rb1 {[%clk 0:00:11]}  Kf2 {[%clk 0:00:07]} 74. Kc5 {[%clk 0:00:11]}  e1=Q {[%clk 0:00:06]} 75. Rxe1 {[%clk 0:00:11]}  Kxe1 {[%clk 0:00:07]} 76. Kxb5 {[%clk 0:00:12]} 1/2-1/2


[Site "https://www.chess.com"]

[Event "Titled Tuesday Blitz May 17 Late 2022"]
[White "Horobetz, Graham"]
[Black "Bluebaum, Matthias"]
[WhiteFideId "2047322"]
[BlackFideId "24651516"]
[WhiteElo "2604"]
[BlackElo "2556"]
[Result "1/2-1/2"]
[Round "04"]
[TimeControl "180+1"]
[Date "2022.05.17"]
[WhiteClock "0:00:07"]
[BlackClock "0:01:23"]

1. e4 {[%clk 0:03:00]}  c6 {[%clk 0:02:59]} 2. d3 {[%clk 0:03:01]}  d5 {[%clk 0:03:00]} 3. Nd2 {[%clk 0:03:00]}  e5 {[%clk 0:02:58]} 4. Ngf3 {[%clk 0:03:01]}  Bd6 {[%clk 0:02:58]} 5. g3 {[%clk 0:03:01]}  Nf6 {[%clk 0:02:58]} 6. Bg2 {[%clk 0:03:02]}  O-O {[%clk 0:02:59]} 7. O-O {[%clk 0:03:02]}  Re8 {[%clk 0:03:00]} 8. Re1 {[%clk 0:03:02]}  Nbd7 {[%clk 0:03:00]} 9. c3 {[%clk 0:03:03]}  a5 {[%clk 0:03:01]} 10. a4 {[%clk 0:03:03]}  Nc5 {[%clk 0:03:01]} 11. Qc2 {[%clk 0:02:57]}  Bg4 {[%clk 0:03:00]} 12. h3 {[%clk 0:02:54]}  Bh5 {[%clk 0:03:00]} 13. g4 {[%clk 0:02:54]}  Bg6 {[%clk 0:02:57]} 14. Nh4 {[%clk 0:02:54]}  dxe4 {[%clk 0:02:57]} 15. dxe4 {[%clk 0:02:54]}  Ne6 {[%clk 0:02:58]} 16. Nf1 {[%clk 0:02:48]}  Nd7 {[%clk 0:02:54]} 17. Nf5 {[%clk 0:02:48]}  Bc5 {[%clk 0:02:53]} 18. Be3 {[%clk 0:02:47]}  Bxe3 {[%clk 0:02:54]} 19. fxe3 {[%clk 0:02:47]}  Qc7 {[%clk 0:02:52]} 20. N1g3 {[%clk 0:02:45]}  f6 {[%clk 0:02:52]} 21. Red1 {[%clk 0:02:43]}  Red8 {[%clk 0:02:43]} 22. Bf1 {[%clk 0:02:44]}  Bf7 {[%clk 0:02:42]} 23. Bc4 {[%clk 0:02:43]}  Nb6 {[%clk 0:02:42]} 24. Bxe6 {[%clk 0:02:40]}  Bxe6 {[%clk 0:02:43]} 25. b3 {[%clk 0:02:38]}  g6 {[%clk 0:02:40]} 26. Nh4 {[%clk 0:02:38]}  Qe7 {[%clk 0:02:40]} 27. Ng2 {[%clk 0:02:23]}  Qc5 {[%clk 0:02:39]} 28. c4 {[%clk 0:02:19]}  Kg7 {[%clk 0:02:38]} 29. Rxd8 {[%clk 0:02:17]}  Rxd8 {[%clk 0:02:39]} 30. Rd1 {[%clk 0:02:17]}  Rd6 {[%clk 0:02:38]} 31. Rxd6 {[%clk 0:02:16]}  Qxd6 {[%clk 0:02:37]} 32. c5 {[%clk 0:02:16]}  Bxb3 {[%clk 0:02:36]} 33. Qxb3 {[%clk 0:02:10]}  Qxc5 {[%clk 0:02:36]} 34. Qe6 {[%clk 0:02:02]}  Qf8 {[%clk 0:02:34]} 35. g5 {[%clk 0:01:59]}  Qf7 {[%clk 0:02:30]} 36. gxf6+ {[%clk 0:01:59]}  Qxf6 {[%clk 0:02:31]} 37. Qb3 {[%clk 0:01:53]}  Qd8 {[%clk 0:02:31]} 38. Qc3 {[%clk 0:01:28]}  Qc7 {[%clk 0:02:26]} 39. Nf4 {[%clk 0:01:28]}  Kh6 {[%clk 0:02:18]} 40. Nd3 {[%clk 0:01:14]}  Nxa4 {[%clk 0:02:16]} 41. Qb3 {[%clk 0:01:14]}  b5 {[%clk 0:02:13]} 42. Qe6 {[%clk 0:01:14]}  Qa7 {[%clk 0:01:59]} 43. Kf2 {[%clk 0:01:05]}  Nc5 {[%clk 0:01:56]} 44. Nxc5 {[%clk 0:00:45]}  Qxc5 {[%clk 0:01:57]} 45. h4 {[%clk 0:00:24]}  Kg7 {[%clk 0:01:50]} 46. h5 {[%clk 0:00:21]}  a4 {[%clk 0:01:41]} 47. h6+ {[%clk 0:00:15]}  Kxh6 {[%clk 0:01:38]} 48. Qf6 {[%clk 0:00:16]}  Qc2+ {[%clk 0:01:38]} 49. Kf3 {[%clk 0:00:14]}  Qd1+ {[%clk 0:01:38]} 50. Kg2 {[%clk 0:00:15]}  Qg4 {[%clk 0:01:36]} 51. Kh2 {[%clk 0:00:13]}  a3 {[%clk 0:01:24]} 52. Nf5+ {[%clk 0:00:11]}  Kh5 {[%clk 0:01:25]} 53. Ng3+ {[%clk 0:00:07]}  Kh6 {[%clk 0:01:25]} 54. Nf5+ {[%clk 0:00:07]}  Kh5 {[%clk 0:01:24]} 55. Ng3+ {[%clk 0:00:07]}  Kh6 {[%clk 0:01:23]} 1/2-1/2


[Site "https://www.chess.com"]

[Event "Titled Tuesday Blitz May 17 Late 2022"]
[White "Indjic, Aleksandar"]
[Black "Donchenko, Alexander"]
[WhiteFideId "911925"]
[BlackFideId "24603295"]
[WhiteElo "2616"]
[BlackElo "2572"]
[Result "1/2-1/2"]
[Round "04"]
[TimeControl "180+1"]
[Date "2022.05.17"]
[WhiteClock "0:00:09"]
[BlackClock "0:00:28"]

1. e4 {[%clk 0:03:00]}  c6 {[%clk 0:02:59]} 2. Nf3 {[%clk 0:02:56]}  d5 {[%clk 0:03:00]} 3. Nc3 {[%clk 0:02:52]}  dxe4 {[%clk 0:02:58]} 4. Nxe4 {[%clk 0:02:53]}  Nf6 {[%clk 0:02:58]} 5. Qe2 {[%clk 0:02:53]}  Nxe4 {[%clk 0:02:58]} 6. Qxe4 {[%clk 0:02:54]}  Nd7 {[%clk 0:02:59]} 7. Bc4 {[%clk 0:02:53]}  Nf6 {[%clk 0:02:59]} 8. Ne5 {[%clk 0:02:52]}  e6 {[%clk 0:02:59]} 9. Qe2 {[%clk 0:02:52]}  b5 {[%clk 0:02:58]} 10. Bb3 {[%clk 0:02:51]}  Qc7 {[%clk 0:02:57]} 11. c3 {[%clk 0:02:51]}  Bd6 {[%clk 0:02:57]} 12. d4 {[%clk 0:02:50]}  O-O {[%clk 0:02:57]} 13. O-O {[%clk 0:02:48]}  a5 {[%clk 0:02:57]} 14. Re1 {[%clk 0:02:45]}  c5 {[%clk 0:02:56]} 15. Bg5 {[%clk 0:02:41]}  c4 {[%clk 0:02:50]} 16. Bc2 {[%clk 0:02:40]}  Nd5 {[%clk 0:02:49]} 17. Qe4 {[%clk 0:02:34]}  g6 {[%clk 0:02:47]} 18. Bh6 {[%clk 0:02:33]}  Re8 {[%clk 0:02:44]} 19. Qf3 {[%clk 0:02:32]}  Bb7 {[%clk 0:02:41]} 20. Be4 {[%clk 0:02:32]}  f5 {[%clk 0:02:31]} 21. Bxd5 {[%clk 0:02:31]}  Bxd5 {[%clk 0:02:32]} 22. Qg3 {[%clk 0:02:31]}  b4 {[%clk 0:02:29]} 23. Bf4 {[%clk 0:02:29]}  Ra6 {[%clk 0:02:21]} 24. h4 {[%clk 0:02:28]}  Qg7 {[%clk 0:02:18]} 25. Re3 {[%clk 0:02:23]}  bxc3 {[%clk 0:02:14]} 26. bxc3 {[%clk 0:02:22]}  Rb8 {[%clk 0:02:11]} 27. h5 {[%clk 0:02:21]}  Rab6 {[%clk 0:01:58]} 28. Rae1 {[%clk 0:02:08]}  Rb1 {[%clk 0:01:56]} 29. hxg6 {[%clk 0:02:07]}  Rxe1+ {[%clk 0:01:55]} 30. Rxe1 {[%clk 0:02:03]}  hxg6 {[%clk 0:01:55]} 31. a4 {[%clk 0:01:28]}  Rb2 {[%clk 0:01:40]} 32. Qh4 {[%clk 0:01:16]}  Rb8 {[%clk 0:01:16]} 33. Bh6 {[%clk 0:01:12]}  Qe7 {[%clk 0:01:12]} 34. Qg3 {[%clk 0:01:04]}  Qf6 {[%clk 0:01:12]} 35. Bf4 {[%clk 0:00:56]}  Rb7 {[%clk 0:00:54]} 36. Nxg6 {[%clk 0:00:54]}  Rg7 {[%clk 0:00:53]} 37. Bxd6 {[%clk 0:00:32]}  Rxg6 {[%clk 0:00:53]} 38. Be5 {[%clk 0:00:18]}  Qf7 {[%clk 0:00:52]} 39. Qh4 {[%clk 0:00:15]}  Rxg2+ {[%clk 0:00:51]} 40. Kf1 {[%clk 0:00:15]}  Qg6 {[%clk 0:00:27]} 41. Qd8+ {[%clk 0:00:12]}  Kf7 {[%clk 0:00:27]} 42. Qd7+ {[%clk 0:00:11]}  Kf8 {[%clk 0:00:27]} 43. Qd8+ {[%clk 0:00:11]}  Kf7 {[%clk 0:00:28]} 44. Qd7+ {[%clk 0:00:11]}  Kf8 {[%clk 0:00:28]} 45. Qd8+ {[%clk 0:00:09]}  Kf7 {[%clk 0:00:28]} 1/2-1/2


[Site "https://www.chess.com"]

[Event "Titled Tuesday Blitz May 17 Late 2022"]
[White "Kamsky, Gata"]
[Black "Shuvalova, Polina"]
[WhiteFideId "2000024"]
[BlackFideId "24171760"]
[WhiteElo "2645"]
[BlackElo "2355"]
[Result "1-0"]
[Round "04"]
[TimeControl "180+1"]
[Date "2022.05.17"]
[WhiteClock "0:00:38"]
[BlackClock "0:00:09"]

1. e4 {[%clk 0:03:00]}  c5 {[%clk 0:02:53]} 2. Nf3 {[%clk 0:03:00]}  d6 {[%clk 0:02:52]} 3. d4 {[%clk 0:02:59]}  cxd4 {[%clk 0:02:53]} 4. Nxd4 {[%clk 0:02:59]}  Nf6 {[%clk 0:02:54]} 5. Nc3 {[%clk 0:02:59]}  a6 {[%clk 0:02:54]} 6. a4 {[%clk 0:02:59]}  e5 {[%clk 0:02:50]} 7. Nf3 {[%clk 0:02:59]}  Be7 {[%clk 0:02:43]} 8. Bc4 {[%clk 0:02:58]}  Be6 {[%clk 0:02:42]} 9. Qe2 {[%clk 0:02:57]}  h6 {[%clk 0:02:40]} 10. O-O {[%clk 0:02:57]}  O-O {[%clk 0:02:40]} 11. Rd1 {[%clk 0:02:57]}  Qc7 {[%clk 0:02:38]} 12. Nd5 {[%clk 0:02:48]}  Nxd5 {[%clk 0:02:33]} 13. Bxd5 {[%clk 0:02:49]}  Nc6 {[%clk 0:02:28]} 14. Be3 {[%clk 0:02:20]}  Rac8 {[%clk 0:02:12]} 15. c3 {[%clk 0:02:19]}  Nb8 {[%clk 0:01:59]} 16. h3 {[%clk 0:02:16]}  Nd7 {[%clk 0:01:59]} 17. Bxe6 {[%clk 0:01:51]}  fxe6 {[%clk 0:01:58]} 18. Nd2 {[%clk 0:01:51]}  Nc5 {[%clk 0:01:48]} 19. Qc4 {[%clk 0:01:41]}  Qd7 {[%clk 0:01:38]} 20. Nb3 {[%clk 0:01:38]}  Nxb3 {[%clk 0:01:32]} 21. Qxb3 {[%clk 0:01:38]}  Rc6 {[%clk 0:01:20]} 22. a5 {[%clk 0:01:28]}  Rfc8 {[%clk 0:01:19]} 23. Ra4 {[%clk 0:01:28]}  Kf7 {[%clk 0:01:16]} 24. Rb4 {[%clk 0:01:26]}  R8c7 {[%clk 0:01:14]} 25. Kh1 {[%clk 0:01:25]}  Qc8 {[%clk 0:01:06]} 26. f4 {[%clk 0:01:22]}  Rc4 {[%clk 0:00:46]} 27. fxe5 {[%clk 0:01:15]}  dxe5 {[%clk 0:00:45]} 28. Rb6 {[%clk 0:01:10]}  Rxe4 {[%clk 0:00:30]} 29. Rf1+ {[%clk 0:01:08]}  Bf6 {[%clk 0:00:30]} 30. Rf3 {[%clk 0:01:02]}  Rec4 {[%clk 0:00:27]} 31. Qd1 {[%clk 0:00:57]}  Rd7 {[%clk 0:00:24]} 32. Qe2 {[%clk 0:00:57]}  Rc6 {[%clk 0:00:24]} 33. Rb4 {[%clk 0:00:55]}  Rcd6 {[%clk 0:00:22]} 34. Rf1 {[%clk 0:00:54]}  Qc6 {[%clk 0:00:21]} 35. Qh5+ {[%clk 0:00:53]}  Kg8 {[%clk 0:00:20]} 36. Bxh6 {[%clk 0:00:50]}  Rd3 {[%clk 0:00:13]} 37. Rxf6 {[%clk 0:00:40]}  gxf6 {[%clk 0:00:10]} 38. Rg4+ {[%clk 0:00:39]}  Kh8 {[%clk 0:00:09]} 39. Bg7+ {[%clk 0:00:38]} 1-0


[Site "https://www.chess.com"]